bitfinex-derivatives/quotes_ETHF0:USTF0_20260203
["timestamp","ask_amount","ask_price","bid_price","bid_amount"]
[1770129344507,2.30883754,2299.4,2297.7,2.49422347]
[1770129344701,6.66983754,2299.7,2297.9,2.49422347]
[1770129344900,6.66983754,2299.7,2297.9,2.49856359]
[1770129344901,0.00475629,2299.4,2297.9,2.49856359]
[1770129345096,2.31359383,2299.1,2297.9,0.00434012]
[1770129345401,2.30883754,2298.4,2296.7,2.49422347]
[1770129345904,2.30883754,2298.0,2296.2,2.49422347]
[1770129346101,2.30883754,2297.7,2296.2,2.49422347]
[1770129346297,0.00475629,2297.5,2296.2,2.49865616]
[1770129346495,2.31443448,2297.7,2296.5,2.49422347]
[1770129346496,0.00559694,2297.7,2296.5,2.49422347]
[1770129347102,0.00559694,2297.7,2296.2,0.00443269]
[1770129347303,0.00475629,2297.0,2296.2,0.00443269]
[1770129347599,0.00475629,2296.9,2295.6,2.49422347]
[1770129348206,7.11159837,2297.7,2295.3,4.359]
[1770129348207,2.30883754,2297.6,2295.8,2.49422347]
[1770129348395,2.30883754,2297.6,2295.3,4.359]
[1770129348396,0.00559694,2297.7,2296.1,2.49422347]
[1770129348598,0.00559694,2297.7,2296.5,2.49422347]
[1770129348800,2.30883754,2299.0,2297.2,2.49422347]
[1770129349105,2.30883754,2299.5,2297.7,2.71203347]
[1770129349299,2.30883754,2299.5,2297.9,2.49422347]
[1770129349703,0.00475629,2299.0,2297.9,2.49422347]
[1770129350000,0.00475629,2298.7,2297.9,0.00508867]
[1770129350201,0.00475629,2298.1,2297.0,2.49422347]
[1770129350406,2.30883754,2298.9,2297.1,2.32029444]
[1770129350699,2.30883754,2298.9,2297.0,4.358]
[1770129350700,0.00339026,2299.0,2297.5,2.32029444]
[1770129350900,6.7765556,2299.9,2298.1,2.32029444]
[1770129351101,2.4185556,2299.8,2298.2,2.53805444]
[1770129351301,0.00475629,2299.2,2297.8,2.32029444]
[1770129351500,2.4185556,2299.0,2297.2,2.32029444]
[1770129351707,6.7765556,2299.9,2297.5,2.32029444]
[1770129351906,2.4185556,2299.8,2297.9,2.32029444]
[1770129352106,2.4185556,2299.5,2297.9,2.32029444]
[1770129352309,2.42331189,2299.3,2297.9,2.32029444]
[1770129352499,2.4185556,2299.1,2297.5,2.32388387]
[1770129352700,2.4185556,2298.9,2297.5,2.32388387]
[1770129352902,0.00475629,2298.6,2297.5,2.32388387]
[1770129353102,2.47266242,2299.0,2297.5,2.32388387]
[1770129353403,0.00475629,2299.0,2297.7,2.33903967]
[1770129353605,6.83393523,2299.9,2298.2,2.33903967]
[1770129353903,0.00475629,2299.6,2298.2,2.33903967]
[1770129354103,2.47266242,2300.7,2299.2,2.33903967]
[1770129354301,6.82866242,2301.1,2299.4,2.55667967]
[1770129354508,2.47266242,2301.6,2300.1,2.33903967]
[1770129354898,0.00475629,2301.4,2300.2,2.33903967]
[1770129355298,0.00433026,2301.4,2300.2,2.34457668]
[1770129355498,2.47266242,2302.3,2300.2,2.34457668]
[1770129355801,33.24300143,2303.3,2300.2,2.34457668]
[1770129355802,2.47266242,2303.3,2301.1,2.33903967]
[1770129356107,2.47266242,2303.4,2301.3,2.33903967]
[1770129356307,2.47266242,2303.9,2301.9,2.33903967]
[1770129356503,0.0039613,2303.9,2302.3,2.55640967]
[1770129356709,2.47662372,2303.9,2302.3,2.33903967]
[1770129357012,2.47662372,2303.9,2301.9,0.00468981]
[1770129357013,0.00475629,2303.0,2302.0,2.33903967]
[1770129357203,0.00475629,2303.2,2302.0,2.33903967]
[1770129357404,0.0039613,2303.9,2302.2,2.33903967]
[1770129357808,0.00871759,2303.9,2302.2,2.33903967]
[1770129358010,0.0039613,2303.9,2302.4,2.33903967]
[1770129358405,0.00475629,2303.4,2302.4,2.33903967]
[1770129358707,0.00475629,2303.2,2301.9,2.34372948]
[1770129359007,0.00475629,2302.0,2300.9,2.33903967]
[1770129359209,2.69001242,2302.6,2300.9,2.33903967]
[1770129359507,2.47266242,2301.8,2299.9,2.33903967]
[1770129359709,2.47266242,2301.7,2299.9,2.33903967]
[1770129360008,0.00475629,2301.2,2299.9,2.34303621]
[1770129360402,0.00475629,2300.9,2299.9,2.34303621]
[1770129360605,2.47754618,2301.7,2299.9,2.34303621]
[1770129360606,0.00475629,2301.3,2299.9,2.34303621]
[1770129360804,2.47754618,2301.7,2299.9,2.34303621]
[1770129360805,0.00475629,2300.9,2299.9,2.34303621]
[1770129361002,2.47754618,2301.7,2299.9,0.00399654]
[1770129361003,0.00475629,2300.5,2299.9,0.00399654]
[1770129361308,2.47741871,2300.4,2298.4,2.33903967]
[1770129361507,6.82366242,2300.9,2298.6,2.33903967]
[1770129361807,6.82366242,2300.9,2297.5,2.74700143]
[1770129361808,2.47266242,2301.4,2299.5,2.33903967]
[1770129362007,2.47266242,2301.6,2299.5,2.33903967]
[1770129362513,2.47741871,2301.6,2299.8,2.33903967]
[1770129362705,40.8,2301.8,2299.5,0.00533088]
[1770129362706,0.00475629,2300.6,2299.5,0.00533088]
[1770129362912,2.47266242,2300.8,2299.5,0.00533088]
[1770129363106,2.47266242,2300.3,2298.8,2.33903967]
[1770129363312,0.00475629,2299.6,2298.3,2.33903967]
[1770129363509,2.47266242,2299.7,2298.3,2.33903967]
[1770129363713,0.00475629,2299.8,2298.3,2.33903967]
[1770129364009,0.00475629,2299.8,2296.9,2.74700143]
[1770129364010,2.69032242,2299.3,2296.8,4.351]
[1770129364214,2.47266242,2299.3,2297.6,2.33903967]
[1770129364411,2.47680244,2299.3,2297.6,2.34440254]
[1770129364810,0.00414002,2299.3,2297.8,2.33903967]
[1770129365013,0.00414002,2299.3,2297.6,2.34440254]
[1770129365213,2.47266242,2298.9,2297.6,0.00536287]
[1770129365514,0.00475629,2298.8,2297.1,2.33903967]
[1770129365818,2.47266242,2298.9,2297.1,2.33903967]
[1770129366012,2.69446244,2299.3,2297.1,2.33903967]
[1770129366318,2.47266242,2298.8,2297.1,2.3435231]
[1770129366516,0.00475629,2299.1,2297.1,2.3435231]
[1770129366715,2.47741871,2298.8,2297.1,2.3435231]
[1770129367011,2.47266242,2298.7,2297.1,2.3435231]
[1770129367815,0.00475629,2298.2,2297.1,0.00448343]
[1770129368021,0.00475629,2298.5,2297.1,2.3435231]
[1770129368424,2.47266242,2298.6,2297.1,2.3435231]
[1770129368618,0.00475629,2298.1,2297.1,2.3435231]
[1770129368817,0.00475629,2298.3,2297.1,2.3435231]
[1770129369014,0.00475629,2298.4,2297.1,2.3435231]
[1770129369414,2.47266242,2298.3,2297.1,0.00448343]
[1770129369614,0.00475629,2298.5,2297.1,2.3435231]
[1770129369821,2.47266242,2298.4,2297.1,2.3435231]
[1770129370119,2.47266242,2298.4,2296.2,2.33903967]
[1770129370120,2.47741871,2297.9,2296.2,2.33903967]
[1770129370324,2.47266242,2297.9,2296.2,2.33903967]
[1770129370618,0.00475629,2297.5,2296.2,2.33903967]
[1770129370819,2.69045242,2297.9,2296.2,2.33903967]
[1770129371020,2.47794563,2297.9,2296.2,2.34455463]
[1770129371523,2.47266242,2297.5,2296.2,2.34455463]
[1770129371727,0.00528321,2297.9,2296.2,2.34455463]
[1770129372021,2.47794563,2297.9,2296.2,2.34455463]
[1770129372226,0.00475629,2297.8,2296.2,2.34455463]
[1770129372426,0.00475629,2297.7,2296.2,2.34455463]
[1770129372720,0.00475629,2297.4,2296.2,2.34455463]
[1770129372920,0.00475629,2296.9,2296.2,0.00551496]
[1770129373123,2.47266242,2297.0,2296.2,0.00551496]
[1770129373324,0.00475629,2297.0,2296.2,0.00551496]
[1770129373530,0.00475629,2296.5,2296.2,0.00551496]
[1770129374030,2.47266242,2297.0,2296.2,0.00551496]
[1770129374525,2.47266242,2297.0,2295.7,2.33903967]
[1770129375127,3.392,2297.3,2295.7,2.33903967]
[1770129375326,5.86466242,2297.3,2295.7,2.33903967]
[1770129375528,5.86466242,2297.3,2295.7,2.34305882]
[1770129375930,2.47266242,2297.3,2295.7,2.34305882]
[1770129376525,2.69051242,2297.3,2295.7,2.34305882]
[1770129376730,2.47266242,2297.1,2295.7,0.00401915]
[1770129376927,2.47266242,2296.7,2294.9,2.33903967]
[1770129377133,4.354,2297.0,2295.4,2.33903967]
[1770129377330,4.354,2297.0,2295.4,2.55705967]
[1770129377532,2.47266242,2296.9,2295.4,2.33903967]
[1770129378033,2.47266242,2296.9,2295.4,2.34417334]
[1770129378332,2.47266242,2296.9,2295.4,2.56220334]
[1770129378633,4.354,2297.0,2295.4,2.56220334]
[1770129378828,4.354,2297.0,2295.6,2.33903967]
[1770129379028,6.82666242,2297.0,2295.6,2.33903967]
[1770129379832,2.47266242,2297.5,2295.6,2.33903967]
[1770129380033,2.47266242,2297.8,2296.0,2.33903967]
[1770129381235,2.35494258,2297.4,2296.0,2.33903967]
[1770129381636,2.57281258,2297.1,2295.6,2.45135258]
[1770129382030,2.35494258,2297.1,2295.6,2.45135258]
[1770129383336,2.57281258,2297.1,2295.6,2.45135258]
[1770129383837,2.35494258,2296.9,2295.4,0.00513367]
[1770129384039,4.411,2297.0,2295.4,0.00513367]
[1770129384040,2.35494258,2296.5,2295.4,0.00513367]
[1770129384227,6.70994258,2296.8,2295.4,2.45648625]
[1770129384429,2.35494258,2296.7,2295.4,2.45648625]
[1770129384827,2.35494258,2296.4,2295.4,0.00513367]
[1770129385032,2.57291258,2296.1,2294.3,6.80635258]
[1770129385435,2.35494258,2296.1,2294.6,2.45135258]
[1770129385630,2.35494258,2296.1,2294.7,2.66944258]
[1770129385935,0.00518783,2296.1,2294.9,2.45135258]
[1770129386837,2.36013041,2296.1,2294.7,0.00342413]
[1770129387029,2.35494258,2295.9,2294.7,0.00342413]
[1770129387938,0.00518783,2296.1,2294.7,2.45477671]
[1770129388230,0.00518783,2296.1,2295.1,2.45135258]
[1770129388636,0.00518783,2296.1,2294.9,2.45135258]
[1770129388637,2.36013041,2296.1,2294.9,2.45135258]
[1770129388829,0.00518783,2296.1,2294.9,2.45135258]
[1770129389430,2.36013041,2296.1,2294.8,4.356]
[1770129389635,0.00518783,2296.1,2294.9,2.45135258]
[1770129390229,2.36013041,2296.1,2294.9,2.45135258]
[1770129391030,2.36013041,2296.1,2294.7,0.00342413]
[1770129391235,2.57298258,2295.4,2294.1,2.45135258]
[1770129392240,2.57297258,2295.4,2294.1,0.00364171]
[1770129392636,2.57299258,2295.2,2294.1,0.00364171]
[1770129392837,2.35494258,2295.0,2294.1,0.00364171]
[1770129393344,2.35494258,2295.0,2293.5,0.2]
[1770129393345,2.35494258,2294.6,2293.5,0.2]
[1770129393641,2.35494258,2294.4,2293.5,0.2]
[1770129393835,2.57307258,2294.4,2293.5,0.2]
[1770129394041,2.35494258,2294.4,2293.5,0.2]
[1770129394241,2.35965048,2294.4,2293.0,2.45135258]
[1770129395243,2.35965048,2294.4,2293.0,2.45661493]
[1770129395635,2.35965048,2294.4,2293.0,0.00526235]
[1770129395838,2.57313258,2293.8,2292.1,2.45135258]
[1770129396045,2.35494258,2293.3,2291.2,2.66977258]
[1770129396240,2.35494258,2292.7,2291.2,2.45135258]
[1770129396440,2.35494258,2292.5,2290.8,2.45135258]
[1770129396744,2.35494258,2292.3,2290.3,2.45135258]
[1770129396948,2.35494258,2291.7,2289.4,2.45135258]
[1770129397242,2.35494258,2291.3,2289.4,2.45135258]
[1770129397441,37.96931804,2291.8,2288.9,4.358]
[1770129397442,2.35494258,2291.8,2290.2,2.45135258]
[1770129397646,2.35494258,2291.8,2290.2,2.66987258]
[1770129398038,2.35494258,2291.8,2290.2,2.67383241]
[1770129398339,6.71294258,2291.9,2290.2,2.67383241]
[1770129398542,2.35494258,2291.8,2290.2,2.67383241]
[1770129399150,2.35494258,2291.8,2290.2,2.45531241]
[1770129400243,6.71294258,2291.9,2290.2,2.45531241]
[1770129400550,6.71294258,2291.9,2290.4,2.45135258]
[1770129400749,4.358,2291.9,2290.4,2.45135258]
[1770129400946,0.00440772,2292.3,2291.0,2.45135258]
[1770129401143,2.3593503,2292.3,2291.0,2.45135258]
[1770129401342,2.35494258,2292.0,2290.2,2.45531241]
[1770129401547,2.35494258,2291.8,2290.2,2.45531241]
[1770129401948,2.57331258,2291.8,2290.2,2.45531241]
[1770129402151,2.35494258,2291.8,2290.2,2.45531241]
[1770129402649,4.361,2291.9,2290.2,2.45531241]
[1770129403051,4.361,2291.9,2290.4,2.45135258]
[1770129403347,4.361,2291.9,2290.4,2.66985258]
[1770129403951,4.361,2291.9,2290.6,2.45135258]
[1770129404145,0.00440772,2292.3,2291.0,2.45135258]
[1770129404350,4.363,2292.8,2291.2,2.66978258]
[1770129404550,4.363,2292.8,2291.2,2.45135258]
[1770129404551,2.35494258,2292.7,2291.2,2.45135258]
[1770129404751,4.363,2292.8,2291.3,0.21841]
[1770129404952,4.363,2292.8,2291.4,2.45135258]
[1770129405354,2.3593503,2292.3,2290.7,2.45135258]
[1770129405554,2.35494258,2292.3,2290.7,2.45135258]
[1770129405754,2.3593503,2292.3,2290.7,2.45135258]
[1770129405951,2.35494258,2292.3,2290.7,2.45135258]
[1770129406455,2.35494258,2292.7,2290.9,2.45135258]
[1770129406755,2.35494258,2292.7,2291.1,2.45135258]
[1770129407156,0.00440772,2292.6,2291.1,2.45135258]
[1770129407351,4.3684171,2292.8,2291.4,2.45135258]
[1770129407754,6.72335968,2292.8,2291.4,2.45135258]
[1770129408349,6.72335968,2292.8,2291.0,2.45135258]
[1770129408350,2.35494258,2292.7,2291.0,2.45135258]
[1770129408550,2.57323258,2292.7,2291.0,2.45135258]
[1770129408750,2.35494258,2292.3,2291.0,2.45135258]
[1770129410054,2.35494258,2292.7,2291.0,2.66979258]
[1770129410253,2.3593503,2292.5,2291.0,2.66979258]
[1770129410455,2.38572023,2292.3,2291.0,2.45135258]
[1770129410956,2.38572023,2291.9,2290.6,2.57660894]
[1770129411151,2.60404023,2292.4,2290.7,2.57659894]
[1770129411459,2.38572023,2292.3,2290.7,2.57659894]
[1770129411662,2.38572023,2291.9,2290.7,2.57659894]
[1770129411959,2.39012795,2291.7,2290.2,2.36208877]
[1770129412263,2.38572023,2291.4,2290.1,2.35812894]
[1770129412462,2.38572023,2291.2,2290.0,2.57666894]
[1770129412665,0.00440772,2291.1,2289.8,2.35812894]
[1770129412958,2.60417023,2291.0,2289.3,0.21861]
[1770129413160,2.5634999,2290.5,2288.7,0.21867]
[1770129413363,2.3449999,2289.9,2288.7,0.00369487]
[1770129413562,2.34940762,2289.4,2288.3,0.2187]
[1770129413762,2.34940762,2289.3,2288.1,0.21872]
[1770129414062,4.365,2289.4,2288.2,2.71192644]
[1770129414259,2.3449999,2290.1,2288.4,2.49321644]
[1770129414461,2.3449999,2290.6,2289.3,2.71181644]
[1770129414658,4.365,2290.7,2289.5,2.49321644]
[1770129414958,2.3449999,2291.9,2290.5,2.49321644]
[1770129415156,2.3449999,2291.9,2289.3,0.00448973]
[1770129415157,2.3449999,2292.4,2291.1,0.21844]
[1770129415358,2.3449999,2292.9,2291.5,0.2184]
[1770129415663,2.3449999,2292.9,2291.0,2.49321644]
[1770129415961,2.34991709,2292.9,2291.0,2.49783193]
[1770129416354,2.3449999,2292.6,2291.0,2.71627193]
[1770129416560,2.3449999,2292.4,2291.0,2.49783193]
[1770129416860,2.34940762,2292.1,2291.0,0.00461549]
[1770129417061,0.00440772,2292.0,2291.0,0.00461549]
[1770129417364,2.3449999,2292.1,2291.0,0.00461549]
[1770129417365,0.00440772,2291.9,2291.0,0.00461549]
[1770129417556,0.00440772,2291.7,2291.0,0.00461549]
[1770129417954,2.34991709,2292.9,2291.0,2.49783193]
[1770129418258,0.00491719,2292.9,2292.0,2.49321644]
[1770129418461,2.3449999,2293.9,2292.2,2.49321644]
[1770129418857,2.5631699,2293.9,2292.2,2.49321644]
[1770129419062,2.5631699,2293.9,2291.8,2.49321644]
[1770129419263,2.3449999,2293.7,2291.8,2.49321644]
[1770129419456,2.3449999,2293.5,2291.8,2.49321644]
[1770129420560,2.3449999,2293.4,2291.3,2.49321644]
[1770129420756,0.21828,2292.8,2291.0,0.00461549]
[1770129420962,2.3449999,2292.5,2291.0,0.00461549]
[1770129421159,5.04182094,2293.0,2291.0,0.00461549]
[1770129421160,2.3449999,2293.1,2291.2,2.49321644]
[1770129421562,2.5632699,2292.9,2291.2,2.49321644]
[1770129421758,2.3449999,2292.7,2291.2,2.49321644]
[1770129421967,2.3449999,2292.7,2291.0,0.00461549]
[1770129421968,2.3449999,2292.5,2291.0,0.00461549]
[1770129422160,2.3449999,2292.3,2291.0,0.00461549]
[1770129422664,2.3449999,2292.8,2291.2,2.49321644]
[1770129422873,2.3449999,2292.3,2291.0,0.00461549]
[1770129423163,2.3449999,2292.1,2291.0,0.00461549]
[1770129423466,2.3449999,2291.7,2290.0,2.49321644]
[1770129423664,2.3449999,2291.5,2290.0,2.49321644]
[1770129424365,2.3449999,2291.3,2289.7,6.85821644]
[1770129424565,2.3449999,2291.3,2289.7,6.86337299]
[1770129424766,4.86665575,2291.1,2289.7,0.00515655]
[1770129425067,46.07660582,2291.2,2289.7,2.49837299]
[1770129425068,2.3449999,2290.9,2289.7,2.49837299]
[1770129425262,2.3449999,2290.7,2289.7,0.00515655]
[1770129425461,2.34961145,2290.7,2289.7,0.00515655]
[1770129425661,0.00461155,2290.7,2289.7,2.49837299]
[1770129425866,2.34961145,2290.7,2289.7,0.00515655]
[1770129426258,0.00461155,2290.7,2289.7,2.49837299]
[1770129426661,2.34961145,2290.7,2289.7,0.00515655]
[1770129426963,2.3449999,2290.3,2288.5,2.49321644]
[1770129427160,2.3449999,2290.1,2288.5,2.49321644]
[1770129427363,2.3449999,2290.1,2287.6,6.38117011]
[1770129427364,2.3449999,2289.5,2287.7,6.85921644]
[1770129427559,2.3449999,2289.3,2287.8,2.49321644]
[1770129427864,2.3449999,2289.2,2287.8,2.7167269]
[1770129428067,2.3449999,2289.7,2288.0,2.49321644]
[1770129428262,7.318,2290.0,2288.4,2.49321644]
[1770129428665,2.3449999,2290.1,2288.6,2.49321644]
[1770129429365,2.3449999,2290.1,2288.1,2.49321644]
[1770129429560,2.3449999,2290.1,2288.3,2.49321644]
[1770129429762,2.3449999,2290.1,2288.3,2.71191644]
[1770129430160,2.3449999,2290.1,2288.3,2.49321644]
[1770129430359,2.3449999,2289.8,2287.9,2.49321644]
[1770129430568,2.3449999,2289.8,2288.1,2.71193644]
[1770129430866,2.3449999,2289.8,2288.3,2.49321644]
[1770129431067,6.7109999,2290.2,2288.3,2.49321644]
[1770129431263,0.00461155,2290.7,2289.2,2.49321644]
[1770129431466,2.34961145,2290.7,2289.2,2.49321644]
[1770129431660,2.3449999,2290.3,2288.8,2.49321644]
[1770129432160,2.5635199,2290.3,2288.8,2.49321644]
[1770129432357,2.3449999,2290.1,2288.4,2.49321644]
[1770129432558,2.3449999,2290.1,2288.4,2.71191644]
[1770129432763,2.3449999,2290.1,2288.4,2.49321644]
[1770129433760,2.3449999,2290.1,2288.4,2.71191644]
[1770129434159,2.3449999,2290.6,2288.6,2.49321644]
[1770129434467,2.3449999,2290.5,2288.6,2.49321644]
[1770129435362,2.3449999,2290.5,2288.8,2.49321644]
[1770129435557,0.00461155,2290.7,2289.9,2.49321644]
[1770129435865,0.00461155,2290.7,2289.9,0.00398109]
[1770129436065,2.34961145,2290.7,2289.9,0.00398109]
[1770129436264,2.3449999,2290.3,2288.7,2.49321644]
[1770129436469,2.3449999,2290.1,2288.7,2.49321644]
[1770129436765,2.5634999,2290.5,2288.7,2.49321644]
[1770129436962,4.368,2290.6,2289.4,2.49321644]
[1770129437362,2.3449999,2290.5,2289.4,0.00507151]
[1770129437964,2.3449999,2290.5,2288.6,2.71189644]
[1770129438165,2.5635199,2290.3,2288.6,2.71189644]
[1770129438564,2.3449999,2289.9,2288.1,2.49321644]
[1770129438766,2.5636099,2289.3,2287.7,2.49321644]
[1770129438961,2.3449999,2288.8,2287.3,2.49321644]
[1770129439162,2.3449999,2288.8,2287.5,2.49321644]
[1770129439163,2.34939219,2288.8,2287.5,2.49321644]
[1770129439362,0.00439229,2288.8,2287.7,2.49321644]
[1770129439570,0.00439229,2288.8,2287.9,2.71195644]
[1770129439870,0.00439229,2288.8,2287.9,2.49321644]
[1770129440170,2.34939219,2288.8,2287.5,2.49321644]
[1770129440370,0.00439229,2288.8,2287.5,2.49321644]
[1770129440666,0.00439229,2288.8,2287.8,2.38038325]
[1770129441070,4.369,2289.3,2288.0,2.38038325]
[1770129441271,2.46142893,2289.2,2287.4,2.38038325]
[1770129441465,2.46142893,2288.6,2287.3,0.00468211]
[1770129441769,2.46142893,2289.0,2287.3,2.42790067]
[1770129442067,2.46142893,2289.0,2287.3,2.20910067]
[1770129442363,2.46142893,2288.7,2287.3,2.20910067]
[1770129442569,2.46142893,2289.1,2287.3,2.20910067]
[1770129442770,2.68326083,2289.1,2287.3,2.2122973]
[1770129443166,2.46142893,2288.9,2287.3,2.2122973]
[1770129443366,2.68007893,2288.9,2287.3,0.00319663]
[1770129443770,2.68009893,2288.7,2287.3,0.00319663]
[1770129444072,2.46142893,2288.0,2286.4,2.59927325]
[1770129444364,4.37,2288.2,2286.9,2.38038325]
[1770129444768,2.46142893,2288.1,2286.5,2.38038325]
[1770129444968,2.68015893,2288.1,2286.5,0.00371539]
[1770129445169,2.68015893,2288.1,2286.5,2.38409864]
[1770129445364,45.17,2288.2,2286.5,2.38409864]
[1770129445365,4.37,2288.4,2286.7,2.38038325]
[1770129445571,2.46142893,2288.3,2286.5,0.00371539]
[1770129445767,6.83142893,2288.4,2286.8,2.38038325]
[1770129445967,2.46142893,2288.3,2286.8,2.38038325]
[1770129446368,2.46142893,2288.3,2286.8,2.59923325]
[1770129446565,4.37,2288.4,2286.8,2.59923325]
[1770129446770,2.46142893,2288.3,2286.8,2.59923325]
[1770129447774,4.37,2288.4,2287.0,2.38038325]
[1770129448171,0.21865,2288.9,2287.2,2.38038325]
[1770129448172,2.68007893,2288.9,2287.2,2.38038325]
[1770129448771,2.68007893,2288.9,2287.2,2.59919325]
[1770129448971,2.46142893,2288.9,2287.6,2.38038325]
[1770129449169,2.46142893,2288.9,2287.2,2.38038325]
[1770129449372,2.68007893,2288.9,2287.2,2.38038325]
[1770129449568,2.46142893,2288.9,2287.6,2.38038325]
[1770129449774,2.46142893,2288.9,2287.1,4.371]
[1770129449775,0.0032019,2289.1,2287.8,2.59913325]
[1770129449969,0.0032019,2289.1,2288.5,2.38038325]
[1770129450274,2.46142893,2290.1,2288.5,2.59906325]
[1770129450468,2.46142893,2289.7,2288.0,2.38038325]
[1770129450674,2.46142893,2290.1,2288.5,2.59907325]
[1770129450875,2.46142893,2290.1,2287.9,4.371]
[1770129450876,4.371,2290.5,2289.2,2.59900325]
[1770129451068,0.00511175,2290.5,2289.6,2.38038325]
[1770129451274,0.00511175,2290.5,2289.3,2.38038325]
[1770129451671,2.46142893,2290.3,2289.2,0.00315203]
[1770129451876,2.46142893,2289.9,2288.4,2.38038325]
[1770129452274,4.98308478,2290.3,2288.5,2.59906325]
[1770129452471,2.46142893,2290.1,2288.5,2.59906325]
[1770129452672,9.701,2290.4,2289.0,0.21863]
[1770129452875,4.371,2290.4,2289.1,2.38038325]
[1770129453280,0.00511175,2290.5,2289.4,2.38038325]
[1770129453578,2.46142893,2290.3,2289.0,0.00517682]
[1770129453878,2.46142893,2290.2,2289.0,0.00517682]
[1770129454078,3.67358344,2290.1,2289.0,0.00517682]
[1770129454374,2.46142893,2290.0,2289.0,0.00517682]
[1770129454771,9.35408478,2290.4,2289.0,2.38556007]
[1770129454972,6.83242893,2290.4,2289.0,2.38556007]
[1770129455178,4.371,2290.4,2289.4,2.38038325]
[1770129455375,37.82039876,2291.1,2289.0,4.37617682]
[1770129455376,2.52165585,2291.5,2290.1,2.38038325]
[1770129455677,2.52165585,2291.5,2289.7,2.38038325]
[1770129455678,2.46142893,2291.3,2289.7,2.38038325]
[1770129455873,2.46142893,2291.1,2289.7,2.38038325]
[1770129456271,2.46142893,2290.9,2289.7,2.38038325]
[1770129456477,2.46450554,2290.9,2289.3,2.38038325]
[1770129456878,2.46142893,2290.6,2289.0,2.38556007]
[1770129457179,2.46142893,2290.4,2289.0,2.38556007]
[1770129457577,2.46142893,2290.4,2289.0,2.60420007]
[1770129457879,2.46142893,2290.8,2289.4,2.38038325]
[1770129459180,0.00307661,2290.9,2290.1,2.38038325]
[1770129459377,2.46142893,2292.1,2290.7,2.59885325]
[1770129459683,2.46142893,2292.3,2290.4,2.59888325]
[1770129459880,2.46142893,2292.1,2290.4,2.59888325]
[1770129460377,2.46632761,2292.1,2290.4,2.38371635]
[1770129460581,2.46632761,2292.1,2290.5,2.59887325]
[1770129460985,2.46632761,2292.1,2291.2,0.21842]
[1770129460986,0.00489868,2292.1,2291.2,0.21842]
[1770129461175,2.46142893,2293.0,2291.7,2.38038325]
[1770129461981,2.46142893,2293.0,2291.3,2.38038325]
[1770129462281,2.4652841,2293.0,2291.3,2.38038325]
[1770129462681,2.6835441,2293.0,2291.1,0.21844]
[1770129462885,2.6835441,2293.0,2289.0,22.08609619]
[1770129462886,2.46142893,2291.4,2289.7,2.38038325]
[1770129463084,2.46142893,2291.6,2290.4,2.38058987]
[1770129463876,2.46142893,2291.6,2290.4,0.00020662]
[1770129464979,2.46142893,2291.6,2289.1,2.38038325]
[1770129464980,2.46142893,2290.9,2289.1,2.38038325]
[1770129465185,2.46142893,2290.9,2289.3,2.59899325]
[1770129465989,2.46685496,2290.9,2289.3,2.60431522]
[1770129466185,0.00542603,2290.9,2289.5,2.38038325]
[1770129466683,4.368,2291.7,2290.2,2.38038325]
[1770129466985,2.46142893,2292.2,2291.0,2.38038325]
[1770129467183,2.46142893,2292.5,2291.0,2.59883325]
[1770129467382,2.46142893,2292.0,2290.6,2.38038325]
[1770129467587,2.46556969,2292.0,2290.6,2.38453107]
[1770129467787,2.46556969,2292.0,2290.6,0.00414782]
[1770129467788,2.68391969,2292.0,2290.6,0.00414782]
[1770129468485,2.46142893,2291.8,2290.6,0.00414782]
[1770129468687,11.16742893,2291.8,2290.6,0.00414782]
[1770129468988,2.46142893,2291.7,2290.6,0.00414782]
[1770129470287,2.46142893,2290.9,2289.3,2.38038325]
[1770129470591,2.67989893,2290.9,2289.3,2.38038325]
[1770129470986,2.52206203,2290.8,2289.3,2.38038325]
[1770129471187,2.52206203,2290.3,2288.5,2.51926567]
[1770129471386,2.52206203,2290.3,2286.9,2.7499376]
[1770129471387,2.74069203,2289.2,2287.5,2.51926567]
[1770129471593,2.7499376,2289.8,2287.1,6.88726567]
[1770129471594,2.52206203,2288.7,2287.1,6.88726567]
[1770129471891,2.52206203,2288.6,2287.1,6.88726567]
[1770129472086,2.52206203,2289.0,2287.3,2.51926567]
[1770129472288,2.52206203,2288.8,2287.3,2.51926567]
[1770129472488,0.0040257,2288.8,2287.3,2.5227857]
[1770129472985,2.36744346,2289.8,2288.1,2.47774028]
[1770129473487,2.36744346,2289.8,2287.3,0.00352003]
[1770129473791,2.36744346,2288.9,2287.3,0.00352003]
[1770129474098,2.36744346,2288.7,2287.3,0.00352003]
[1770129474394,2.36744346,2288.7,2287.3,2.48126031]
[1770129474589,2.36744346,2288.7,2287.3,0.00352003]
[1770129474786,2.36744346,2288.5,2287.3,2.48126031]
[1770129475095,6.969,2288.8,2287.3,2.48126031]
[1770129475292,2.36744346,2288.7,2287.3,2.48126031]
[1770129475692,6.969,2288.8,2287.3,2.48126031]
[1770129475997,2.36744346,2288.7,2287.3,2.48126031]
[1770129476194,6.969,2288.8,2287.3,2.48126031]
[1770129476394,2.36744346,2288.7,2287.3,2.48126031]
[1770129477194,2.36744346,2288.7,2287.3,0.00352003]
[1770129477595,2.36744346,2288.7,2287.3,2.48126031]
[1770129478196,6.969,2288.8,2287.3,2.48126031]
[1770129478491,2.36744346,2288.7,2287.3,2.70006031]
[1770129478695,2.36744346,2288.7,2286.2,5.10682582]
[1770129478989,2.36744346,2288.7,2285.5,6.38117011]
[1770129478990,2.36744346,2287.5,2285.5,2.47774028]
[1770129479192,5.08010667,2288.3,2285.5,2.47774028]
[1770129479193,6.21844346,2287.4,2285.5,2.47774028]
[1770129479389,6.21844346,2287.4,2285.7,2.47774028]
[1770129479595,2.36744346,2288.5,2286.0,2.47774028]
[1770129479795,2.36744346,2288.3,2286.2,2.47774028]
[1770129480397,2.36744346,2287.7,2286.0,0.00505168]
[1770129480595,2.36744346,2287.3,2285.2,2.47774028]
[1770129480796,2.36744346,2287.7,2285.8,2.47774028]
[1770129481092,40.83805045,2288.6,2285.3,5.3129376]
[1770129481093,2.36744346,2288.5,2286.4,2.47774028]
[1770129481293,2.37267046,2288.9,2287.1,2.47774028]
[1770129481492,0.005227,2288.9,2287.8,2.47774028]
[1770129481692,0.005227,2288.9,2287.8,2.48307726]
[1770129482992,2.37267046,2288.9,2287.8,0.00533698]
[1770129483389,0.005227,2288.9,2287.8,2.48307726]
[1770129483597,4.371,2289.8,2288.0,2.69647028]
[1770129483796,2.36744346,2289.7,2287.8,2.48307726]
[1770129483999,2.36744346,2289.7,2287.8,0.00533698]
[1770129484000,2.36744346,2289.3,2287.8,0.00533698]
[1770129484198,2.36744346,2289.1,2287.8,0.00131128]
[1770129484398,41.01863,2289.2,2287.8,0.00131128]
[1770129484399,2.36744346,2288.9,2287.8,0.00131128]
[1770129484597,0.21864,2289.0,2287.0,2.47774028]
[1770129484598,2.36744346,2288.7,2287.0,2.47774028]
[1770129484799,2.58611346,2288.7,2287.0,2.47774028]
[1770129485002,2.36744346,2288.5,2286.3,2.47774028]